[Event "*** Titled Tuesday Blitz"]
[Site "Chess.com"]
[Date "2020.11.10"]
[Round "8"]
[White "PattyCastillo"]
[Black "rududuyk"]
[Result "1-0"]
[WhiteElo "1984"]
[BlackElo "2155"]
[TimeControl "180+1"]
[EndTime "11:31:33 PST"]
[Termination "PattyCastillo won by resignation"]

1. d4 {[%clk 0:03:00.9]} 1... e6 {[%clk 0:02:59.7]} 2. Nf3 {[%clk 0:03:00.5]}
2... f5 {[%clk 0:02:59.9]} 3. e3 {[%clk 0:03:00.1]} 3... Nf6 {[%clk 0:02:58.6]}
4. Bd3 {[%clk 0:03:00.2]} 4... b6 {[%clk 0:02:57.9]} 5. b3 {[%clk 0:03:00.5]}
5... Bb7 {[%clk 0:02:58.4]} 6. Bb2 {[%clk 0:03:00.8]} 6... Be7 {[%clk
0:02:53.3]} 7. Nbd2 {[%clk 0:03:00.6]} 7... a5 {[%clk 0:02:49.9]} 8. O-O {[%clk
0:03:00.5]} 8... O-O {[%clk 0:02:49.2]} 9. c4 {[%clk 0:03:00.5]} 9... Ne4 {[%clk
0:02:46.1]} 10. Qc2 {[%clk 0:02:53.7]} 10... Nxd2 {[%clk 0:02:40.5]} 11. Nxd2
{[%clk 0:02:53.5]} 11... Qe8 {[%clk 0:02:34.6]} 12. e4 {[%clk 0:02:51.6]} 12...
f4 {[%clk 0:02:34.4]} 13. d5 {[%clk 0:02:50.5]} 13... Qh5 {[%clk 0:02:24.6]} 14.
Nf3 {[%clk 0:02:43.3]} 14... Na6 {[%clk 0:02:14]} 15. a3 {[%clk 0:02:42.5]}
15... Nc5 {[%clk 0:02:11.8]} 16. Be2 {[%clk 0:02:37.5]} 16... Qg6 {[%clk
0:02:09.5]} 17. b4 {[%clk 0:02:26.4]} 17... axb4 {[%clk 0:01:51.1]} 18. axb4
{[%clk 0:02:27.3]} 18... Na6 {[%clk 0:01:51]} 19. Qd2 {[%clk 0:02:12.9]} 19...
Bxb4 {[%clk 0:01:44.8]} 20. Qd4 {[%clk 0:02:03.5]} 20... Bc5 {[%clk 0:01:30.6]}
21. Qd1 {[%clk 0:01:56.2]} 21... Nb4 {[%clk 0:01:22]} 22. Rxa8 {[%clk
0:01:55.5]} 22... Rxa8 {[%clk 0:01:21.4]} 23. Ne5 {[%clk 0:01:52.7]} 23... Qe8
{[%clk 0:01:12.1]} 24. Bh5 {[%clk 0:01:39.1]} 24... Qe7 {[%clk 0:01:07.6]} 25.
Bf7+ {[%clk 0:01:32]} 25... Kf8 {[%clk 0:00:57.8]} 26. Qh5 {[%clk 0:01:21]}
26... d6 {[%clk 0:00:55.3]} 27. Ng6+ {[%clk 0:01:11.8]} 27... hxg6 {[%clk
0:00:54.9]} 28. Bxg6 {[%clk 0:01:12]} 1-0

[Event "*** Titled Tuesday Blitz"]
[Site "Chess.com"]
[Date "2020.11.10"]
[Round "8"]
[White "SantoBlue"]
[Black "AlexeiShirov"]
[Result "0-1"]
[WhiteElo "2911"]
[BlackElo "2820"]
[TimeControl "180+1"]
[EndTime "11:31:35 PST"]
[Termination "AlexeiShirov won by resignation"]

1. e4 {[%clk 0:03:00.9]} 1... e5 {[%clk 0:02:59.3]} 2. Nf3 {[%clk 0:03:00.4]}
2... Nc6 {[%clk 0:02:59.3]} 3. Bb5 {[%clk 0:03:00.4]} 3... a6 {[%clk 0:02:59.1]}
4. Ba4 {[%clk 0:03:00.5]} 4... Nf6 {[%clk 0:02:58.9]} 5. O-O {[%clk 0:03:00.5]}
5... b5 {[%clk 0:02:59]} 6. Bb3 {[%clk 0:03:00.4]} 6... Bc5 {[%clk 0:02:58.9]}
7. Nc3 {[%clk 0:03:00.2]} 7... O-O {[%clk 0:02:54.3]} 8. Nd5 {[%clk 0:02:58.7]}
8... d6 {[%clk 0:02:53.7]} 9. c3 {[%clk 0:02:58.6]} 9... h6 {[%clk 0:02:52.5]}
10. d4 {[%clk 0:02:58.2]} 10... Ba7 {[%clk 0:02:49.3]} 11. Nxf6+ {[%clk
0:02:57.8]} 11... Qxf6 {[%clk 0:02:47.9]} 12. Bd5 {[%clk 0:02:57.9]} 12... Bd7
{[%clk 0:02:44.8]} 13. a4 {[%clk 0:02:57.1]} 13... Bb6 {[%clk 0:02:28]} 14. Be3
{[%clk 0:02:49.3]} 14... Rab8 {[%clk 0:02:19.9]} 15. Bxc6 {[%clk 0:01:43.8]}
15... Bxc6 {[%clk 0:02:19.2]} 16. a5 {[%clk 0:01:44.3]} 16... exd4 {[%clk
0:02:10.6]} 17. axb6 {[%clk 0:01:33.2]} 17... dxe3 {[%clk 0:02:07.6]} 18. bxc7
{[%clk 0:01:33.5]} 18... Ra8 {[%clk 0:01:58.3]} 19. fxe3 {[%clk 0:01:28.1]}
19... Qe7 {[%clk 0:01:57.3]} 20. Nd4 {[%clk 0:01:24.6]} 20... Bxe4 {[%clk
0:01:53.6]} 21. Qg4 {[%clk 0:01:24.1]} 21... f5 {[%clk 0:01:41.8]} 22. Qg6
{[%clk 0:01:14.8]} 22... Rf6 {[%clk 0:01:26.1]} 23. Rxa6 {[%clk 0:01:06.7]}
23... Rxg6 {[%clk 0:01:18.5]} 24. Rxa8+ {[%clk 0:00:58.4]} 24... Kf7 {[%clk
0:01:14.7]} 25. c8=Q {[%clk 0:00:43.5]} 25... Rxg2+ {[%clk 0:01:12.7]} 26. Kh1
{[%clk 0:00:43.8]} 26... Rxh2+ {[%clk 0:01:10.7]} 0-1

[Event "*** Titled Tuesday Blitz"]
[Site "Chess.com"]
[Date "2020.11.10"]
[Round "8"]
[White "lacafi"]
[Black "Sergienko_Sergey"]
[Result "1-0"]
[WhiteElo "2142"]
[BlackElo "2275"]
[TimeControl "180+1"]
[EndTime "11:31:43 PST"]
[Termination "lacafi won by checkmate"]

1. d4 {[%clk 0:03:00.9]} 1... Nf6 {[%clk 0:02:59.4]} 2. Nf3 {[%clk 0:03:00]}
2... e6 {[%clk 0:02:58]} 3. e3 {[%clk 0:02:59.6]} 3... b6 {[%clk 0:02:56.8]} 4.
Bd3 {[%clk 0:03:00.1]} 4... Bb7 {[%clk 0:02:56.2]} 5. Nbd2 {[%clk 0:03:00.6]}
5... c5 {[%clk 0:02:53.6]} 6. Qe2 {[%clk 0:02:59.5]} 6... Be7 {[%clk 0:02:52.4]}
7. c3 {[%clk 0:02:59.8]} 7... O-O {[%clk 0:02:47.3]} 8. O-O {[%clk 0:02:59.3]}
8... d6 {[%clk 0:02:46.5]} 9. e4 {[%clk 0:02:56.2]} 9... cxd4 {[%clk 0:02:40.5]}
10. cxd4 {[%clk 0:02:57.1]} 10... Nbd7 {[%clk 0:02:30.9]} 11. e5 {[%clk
0:02:52.2]} 11... Nd5 {[%clk 0:02:29.5]} 12. Ne4 {[%clk 0:02:51.7]} 12... dxe5
{[%clk 0:02:16.1]} 13. dxe5 {[%clk 0:02:52.6]} 13... h6 {[%clk 0:01:48.5]} 14.
Rd1 {[%clk 0:02:36.6]} 14... Qc7 {[%clk 0:01:38.1]} 15. Ng3 {[%clk 0:02:36.3]}
15... Nb4 {[%clk 0:01:31.6]} 16. Be4 {[%clk 0:02:29.9]} 16... Bxe4 {[%clk
0:01:26]} 17. Qxe4 {[%clk 0:02:30.3]} 17... Rfd8 {[%clk 0:01:17.4]} 18. Bxh6
{[%clk 0:01:53]} 18... gxh6 {[%clk 0:00:53.4]} 19. Qg4+ {[%clk 0:01:49.5]} 19...
Kh7 {[%clk 0:00:49.1]} 20. Nh5 {[%clk 0:01:45.2]} 20... Rg8 {[%clk 0:00:42.4]}
21. Qe4+ {[%clk 0:01:40.3]} 21... Kh8 {[%clk 0:00:40.4]} 22. Rac1 {[%clk
0:01:19.1]} 22... Qd8 {[%clk 0:00:18]} 23. Qf4 {[%clk 0:01:19.3]} 23... Nd5
{[%clk 0:00:13.4]} 24. Qxh6# {[%clk 0:01:18.5]} 1-0

[Event "*** Titled Tuesday Blitz"]
[Site "Chess.com"]
[Date "2020.11.10"]
[Round "8"]
[White "Meri-Arabidze"]
[Black "ural58"]
[Result "1-0"]
[WhiteElo "2623"]
[BlackElo "2388"]
[TimeControl "180+1"]
[EndTime "11:31:45 PST"]
[Termination "Meri-Arabidze won by resignation"]

1. d4 {[%clk 0:03:00.9]} 1... d5 {[%clk 0:02:43.7]} 2. c4 {[%clk 0:03:00.7]}
2... e5 {[%clk 0:02:42.8]} 3. dxe5 {[%clk 0:03:00]} 3... d4 {[%clk 0:02:42.8]}
4. Nf3 {[%clk 0:03:00.6]} 4... Nc6 {[%clk 0:02:42.9]} 5. Nbd2 {[%clk 0:03:01.3]}
5... a5 {[%clk 0:02:42]} 6. g3 {[%clk 0:03:00.3]} 6... Bf5 {[%clk 0:02:38.4]} 7.
Bg2 {[%clk 0:02:57.3]} 7... Qd7 {[%clk 0:02:38.3]} 8. O-O {[%clk 0:02:56.9]}
8... Bc5 {[%clk 0:02:33.4]} 9. Nb3 {[%clk 0:02:51.5]} 9... Ba7 {[%clk
0:02:33.1]} 10. Bf4 {[%clk 0:02:51.3]} 10... h6 {[%clk 0:02:31.4]} 11. Rc1
{[%clk 0:02:17.7]} 11... a4 {[%clk 0:02:29.2]} 12. Na1 {[%clk 0:02:08.9]} 12...
Bc5 {[%clk 0:02:24.9]} 13. Nc2 {[%clk 0:02:07.8]} 13... g5 {[%clk 0:02:24.1]}
14. Bd2 {[%clk 0:02:07.4]} 14... Nge7 {[%clk 0:02:23.5]} 15. b4 {[%clk
0:02:05.5]} 15... axb3 {[%clk 0:02:22.9]} 16. axb3 {[%clk 0:02:06.2]} 16... d3
{[%clk 0:02:03.8]} 17. exd3 {[%clk 0:01:54]} 17... Qxd3 {[%clk 0:01:59]} 18. Ne3
{[%clk 0:01:49.7]} 18... Bg6 {[%clk 0:01:35.5]} 19. Rc3 {[%clk 0:01:48.4]} 19...
Qd7 {[%clk 0:01:31.3]} 20. Nd5 {[%clk 0:01:46.6]} 20... O-O-O {[%clk 0:01:12.7]}
21. Qa1 {[%clk 0:01:43.4]} 21... Nb8 {[%clk 0:00:58.7]} 22. Qa8 {[%clk
0:01:38.3]} 22... Nc6 {[%clk 0:00:42.3]} 23. b4 {[%clk 0:01:30.4]} 23... Nxb4
{[%clk 0:00:26.8]} 24. Rb3 {[%clk 0:01:30.4]} 24... Be4 {[%clk 0:00:16.5]} 25.
Bxb4 {[%clk 0:01:28.5]} 25... Bxb4 {[%clk 0:00:16.1]} 26. Rxb4 {[%clk
0:01:28.8]} 26... Qc6 {[%clk 0:00:16.5]} 27. Ne7+ {[%clk 0:01:27.4]} 1-0

[Event "*** Titled Tuesday Blitz"]
[Site "Chess.com"]
[Date "2020.11.10"]
[Round "8"]
[White "NikolaGry"]
[Black "yobdc"]
[Result "1-0"]
[WhiteElo "2639"]
[BlackElo "2440"]
[TimeControl "180+1"]
[EndTime "11:31:51 PST"]
[Termination "NikolaGry won by resignation"]

1. b3 {[%clk 0:03:00.9]} 1... e5 {[%clk 0:02:59.5]} 2. Bb2 {[%clk 0:03:00.9]}
2... Nc6 {[%clk 0:03:00]} 3. c4 {[%clk 0:03:01.4]} 3... Nf6 {[%clk 0:03:00.2]}
4. e3 {[%clk 0:03:01.7]} 4... d5 {[%clk 0:03:00.3]} 5. cxd5 {[%clk 0:03:02]}
5... Nxd5 {[%clk 0:03:01.2]} 6. a3 {[%clk 0:03:02.4]} 6... Bd6 {[%clk 0:03:01]}
7. d3 {[%clk 0:03:02.2]} 7... O-O {[%clk 0:03:01.1]} 8. Nf3 {[%clk 0:03:02.4]}
8... f5 {[%clk 0:02:54.5]} 9. Nbd2 {[%clk 0:03:02]} 9... Kh8 {[%clk 0:02:54.1]}
10. Be2 {[%clk 0:02:59.9]} 10... Qe8 {[%clk 0:02:52.8]} 11. Qc2 {[%clk
0:02:57.9]} 11... Be6 {[%clk 0:02:50.3]} 12. O-O {[%clk 0:02:54.5]} 12... Qg6
{[%clk 0:02:48.1]} 13. Kh1 {[%clk 0:02:37.8]} 13... Rae8 {[%clk 0:02:47.3]} 14.
b4 {[%clk 0:02:26.4]} 14... a6 {[%clk 0:02:36.5]} 15. Rac1 {[%clk 0:02:18.8]}
15... Qh6 {[%clk 0:02:30.7]} 16. Qb1 {[%clk 0:02:00.8]} 16... Bd7 {[%clk
0:02:10.8]} 17. g3 {[%clk 0:01:52.7]} 17... f4 {[%clk 0:02:08.8]} 18. gxf4
{[%clk 0:01:50.4]} 18... exf4 {[%clk 0:02:08]} 19. e4 {[%clk 0:01:50.6]} 19...
Nf6 {[%clk 0:02:03.1]} 20. Rg1 {[%clk 0:01:43.7]} 20... Ng4 {[%clk 0:02:01.1]}
21. Rg2 {[%clk 0:01:40]} 21... Nce5 {[%clk 0:01:54.5]} 22. Rcg1 {[%clk
0:01:30.3]} 22... Rf7 {[%clk 0:01:48.7]} 23. d4 {[%clk 0:01:14.2]} 23... Nxf3
{[%clk 0:01:39.7]} 24. Nxf3 {[%clk 0:01:13.7]} 24... Bc6 {[%clk 0:01:34.4]} 25.
d5 {[%clk 0:00:54.1]} 25... Bxd5 {[%clk 0:01:27.9]} 26. exd5 {[%clk 0:00:53.9]}
26... Rxe2 {[%clk 0:01:16.3]} 27. Rxg4 {[%clk 0:00:51.1]} 27... Rxf2 {[%clk
0:01:14.4]} 28. Bxg7+ {[%clk 0:00:44.6]} 28... Rxg7 {[%clk 0:01:13.7]} 29. Rxg7
{[%clk 0:00:44.1]} 29... Qxg7 {[%clk 0:01:01.6]} 30. Rxg7 {[%clk 0:00:42.8]}
30... Kxg7 {[%clk 0:01:02.5]} 31. Qg1+ {[%clk 0:00:41.7]} 1-0

[Event "*** Titled Tuesday Blitz"]
[Site "Chess.com"]
[Date "2020.11.10"]
[Round "8"]
[White "paulrusan"]
[Black "Praslov"]
[Result "1-0"]
[WhiteElo "2227"]
[BlackElo "2387"]
[TimeControl "180+1"]
[EndTime "11:32:01 PST"]
[Termination "paulrusan won by checkmate"]

1. e4 {[%clk 0:03:00.9]} 1... c6 {[%clk 0:02:59.2]} 2. d4 {[%clk 0:03:00.5]}
2... d5 {[%clk 0:02:59.6]} 3. f3 {[%clk 0:03:00.9]} 3... Qb6 {[%clk 0:02:56.4]}
4. Nc3 {[%clk 0:02:59.7]} 4... dxe4 {[%clk 0:02:56.3]} 5. fxe4 {[%clk 0:02:59]}
5... e5 {[%clk 0:02:56.2]} 6. Nf3 {[%clk 0:02:57.1]} 6... exd4 {[%clk
0:02:54.7]} 7. Nxd4 {[%clk 0:02:53.6]} 7... Bc5 {[%clk 0:02:44.9]} 8. Na4 {[%clk
0:02:49]} 8... Qa5+ {[%clk 0:02:43]} 9. c3 {[%clk 0:02:49]} 9... Be7 {[%clk
0:02:32.7]} 10. Be3 {[%clk 0:02:35]} 10... b5 {[%clk 0:02:25]} 11. Nxb5 {[%clk
0:02:30.5]} 11... cxb5 {[%clk 0:02:23.3]} 12. Qd5 {[%clk 0:02:30.5]} 12... Bd7
{[%clk 0:01:33.1]} 13. Qxa8 {[%clk 0:02:25.4]} 13... Qc7 {[%clk 0:01:32.7]} 14.
Bxa7 {[%clk 0:02:20]} 14... bxa4 {[%clk 0:01:31.4]} 15. Bxb8 {[%clk 0:02:16.9]}
15... Qc8 {[%clk 0:01:28]} 16. Ba6 {[%clk 0:02:13.1]} 16... Qd8 {[%clk
0:01:25.1]} 17. O-O-O {[%clk 0:02:04.7]} 17... a3 {[%clk 0:01:21.3]} 18. Bb5
{[%clk 0:01:56.5]} 18... axb2+ {[%clk 0:01:20]} 19. Kxb2 {[%clk 0:01:49.7]}
19... Nf6 {[%clk 0:01:12.5]} 20. e5 {[%clk 0:01:44.9]} 20... O-O {[%clk
0:01:05.2]} 21. exf6 {[%clk 0:01:43.9]} 21... Qxb8 {[%clk 0:01:00]} 22. Qxb8
{[%clk 0:01:26.7]} 22... Rxb8 {[%clk 0:00:59.4]} 23. fxe7 {[%clk 0:01:14.7]}
23... Rxb5+ {[%clk 0:00:46.1]} 24. Ka3 {[%clk 0:01:13.2]} 24... Ra5+ {[%clk
0:00:22.4]} 25. Kb4 {[%clk 0:01:11.3]} 25... Ra4+ {[%clk 0:00:17.5]} 26. Kb3
{[%clk 0:01:11.5]} 26... Ra7 {[%clk 0:00:16.6]} 27. Rxd7 {[%clk 0:01:09.6]}
27... Rxd7 {[%clk 0:00:16.2]} 28. e8=Q# {[%clk 0:01:08.9]} 1-0

[Event "*** Titled Tuesday Blitz"]
[Site "Chess.com"]
[Date "2020.11.10"]
[Round "8"]
[White "dennisodessa"]
[Black "Blitzking642"]
[Result "1/2-1/2"]
[WhiteElo "2452"]
[BlackElo "2294"]
[TimeControl "180+1"]
[EndTime "11:32:02 PST"]
[Termination "Game drawn by repetition"]

1. c4 {[%clk 0:02:59.1]} 1... c5 {[%clk 0:02:59.6]} 2. g3 {[%clk 0:02:53.9]}
2... g6 {[%clk 0:02:57.6]} 3. Bg2 {[%clk 0:02:54.8]} 3... Bg7 {[%clk 0:02:57.2]}
4. Nf3 {[%clk 0:02:55.1]} 4... Nc6 {[%clk 0:02:57.3]} 5. O-O {[%clk 0:02:54.5]}
5... e6 {[%clk 0:02:57.7]} 6. e3 {[%clk 0:02:52.1]} 6... Nge7 {[%clk 0:02:57.4]}
7. Nc3 {[%clk 0:02:52.2]} 7... O-O {[%clk 0:02:56.7]} 8. d4 {[%clk 0:02:52.9]}
8... cxd4 {[%clk 0:02:56.4]} 9. Nxd4 {[%clk 0:02:52.2]} 9... Nxd4 {[%clk
0:02:44.6]} 10. exd4 {[%clk 0:02:53.1]} 10... d5 {[%clk 0:02:45.1]} 11. cxd5
{[%clk 0:02:53.7]} 11... Nxd5 {[%clk 0:02:44.9]} 12. Nxd5 {[%clk 0:02:54.2]}
12... exd5 {[%clk 0:02:45.1]} 13. Be3 {[%clk 0:02:54.7]} 13... Be6 {[%clk
0:02:33.6]} 14. Qb3 {[%clk 0:02:50.3]} 14... Qd7 {[%clk 0:02:18.3]} 15. Rfc1
{[%clk 0:02:17.2]} 15... Rfc8 {[%clk 0:02:18.8]} 16. Rc5 {[%clk 0:02:07.7]}
16... Rxc5 {[%clk 0:02:06.2]} 17. dxc5 {[%clk 0:02:08.6]} 17... d4 {[%clk
0:02:05.8]} 18. Qxb7 {[%clk 0:02:07.9]} 18... Qxb7 {[%clk 0:01:51]} 19. Bxb7
{[%clk 0:02:08.8]} 19... Rb8 {[%clk 0:01:51.3]} 20. c6 {[%clk 0:02:05.4]} 20...
dxe3 {[%clk 0:01:51.1]} 21. Re1 {[%clk 0:01:59.5]} 21... exf2+ {[%clk
0:01:03.1]} 22. Kxf2 {[%clk 0:01:58.9]} 22... Bd4+ {[%clk 0:01:01.6]} 23. Kg2
{[%clk 0:01:58.5]} 23... Bd5+ {[%clk 0:00:57.2]} 24. Kh3 {[%clk 0:01:58.3]}
24... Rxb7 {[%clk 0:00:41.2]} 25. cxb7 {[%clk 0:01:47.9]} 25... Bxb7 {[%clk
0:00:42.1]} 26. b3 {[%clk 0:01:37.3]} 26... Kf8 {[%clk 0:00:38.8]} 27. Rc1
{[%clk 0:01:29.7]} 27... Bb6 {[%clk 0:00:36.8]} 28. Rc3 {[%clk 0:01:23.5]} 28...
Ke7 {[%clk 0:00:34.7]} 29. Rc1 {[%clk 0:01:22.4]} 29... h5 {[%clk 0:00:34.1]}
30. Rd1 {[%clk 0:01:19.4]} 30... Bc8+ {[%clk 0:00:30.6]} 31. Kg2 {[%clk
0:01:19.2]} 31... Bb7+ {[%clk 0:00:30.6]} 32. Kh3 {[%clk 0:01:19.2]} 32... Bc8+
{[%clk 0:00:24.6]} 33. Kg2 {[%clk 0:01:18.6]} 33... Bb7+ {[%clk 0:00:23.6]} 34.
Kh3 {[%clk 0:01:18.4]} 1/2-1/2

[Event "*** Titled Tuesday Blitz"]
[Site "Chess.com"]
[Date "2020.11.10"]
[Round "8"]
[White "sjam6687"]
[Black "Hasangatin_Ramil"]
[Result "1-0"]
[WhiteElo "2721"]
[BlackElo "2561"]
[TimeControl "180+1"]
[EndTime "11:32:05 PST"]
[Termination "sjam6687 won by checkmate"]

1. e4 {[%clk 0:03:00.8]} 1... d5 {[%clk 0:02:49.2]} 2. exd5 {[%clk 0:02:58.7]}
2... Qxd5 {[%clk 0:02:50.1]} 3. Nc3 {[%clk 0:02:55.4]} 3... Qd6 {[%clk
0:02:48.8]} 4. Nf3 {[%clk 0:02:53.9]} 4... Nf6 {[%clk 0:02:49]} 5. d4 {[%clk
0:02:53.7]} 5... c6 {[%clk 0:02:45.1]} 6. Bd3 {[%clk 0:02:51.3]} 6... Bg4 {[%clk
0:02:43.5]} 7. Be3 {[%clk 0:02:51.6]} 7... Nbd7 {[%clk 0:02:42.7]} 8. h3 {[%clk
0:02:48.9]} 8... Bh5 {[%clk 0:02:42.4]} 9. O-O {[%clk 0:02:48.5]} 9... e6 {[%clk
0:02:41.9]} 10. Re1 {[%clk 0:02:47]} 10... Be7 {[%clk 0:02:40.2]} 11. g4 {[%clk
0:02:47.2]} 11... Bg6 {[%clk 0:02:39.6]} 12. Ne5 {[%clk 0:02:41.4]} 12... Nxe5
{[%clk 0:02:32.7]} 13. dxe5 {[%clk 0:02:39.9]} 13... Qxe5 {[%clk 0:02:32.3]} 14.
Bh6 {[%clk 0:02:40]} 14... Qd6 {[%clk 0:02:22.5]} 15. Bxg7 {[%clk 0:02:37.6]}
15... Rg8 {[%clk 0:02:21.8]} 16. Bxf6 {[%clk 0:02:33.2]} 16... Bxf6 {[%clk
0:02:22.7]} 17. Bxg6 {[%clk 0:02:32.6]} 17... Qxd1 {[%clk 0:02:20.2]} 18. Bxf7+
{[%clk 0:02:33]} 18... Kxf7 {[%clk 0:02:21.1]} 19. Raxd1 {[%clk 0:02:31.3]}
19... Bxc3 {[%clk 0:02:20.5]} 20. bxc3 {[%clk 0:02:30.4]} 20... Rad8 {[%clk
0:02:20.4]} 21. Rd4 {[%clk 0:02:27.2]} 21... Rd5 {[%clk 0:02:17.2]} 22. Red1
{[%clk 0:02:20.8]} 22... Rgd8 {[%clk 0:02:14.1]} 23. Rxd5 {[%clk 0:02:17.5]}
23... cxd5 {[%clk 0:02:12]} 24. f4 {[%clk 0:02:18.1]} 24... Rc8 {[%clk
0:02:11.4]} 25. Rd3 {[%clk 0:02:14.7]} 25... Rc4 {[%clk 0:02:10.2]} 26. f5
{[%clk 0:02:13]} 26... Ra4 {[%clk 0:02:07.9]} 27. fxe6+ {[%clk 0:02:11.2]} 27...
Kxe6 {[%clk 0:02:08.8]} 28. g5 {[%clk 0:02:07.8]} 28... Rxa2 {[%clk 0:02:07.7]}
29. Rf3 {[%clk 0:02:06.1]} 29... Rxc2 {[%clk 0:02:06.9]} 30. Rf6+ {[%clk
0:02:03.4]} 30... Ke5 {[%clk 0:02:04.7]} 31. Rf7 {[%clk 0:02:04]} 31... Rxc3
{[%clk 0:02:01.3]} 32. h4 {[%clk 0:02:04.2]} 32... Rb3 {[%clk 0:01:36.8]} 33.
Rxh7 {[%clk 0:02:00.2]} 33... a5 {[%clk 0:01:37.2]} 34. Kf2 {[%clk 0:01:51.7]}
34... a4 {[%clk 0:01:37.1]} 35. g6 {[%clk 0:01:50.4]} 35... Kf6 {[%clk
0:01:26.2]} 36. h5 {[%clk 0:01:47.7]} 36... a3 {[%clk 0:01:26.5]} 37. Rf7+
{[%clk 0:01:45.6]} 37... Ke6 {[%clk 0:01:26.7]} 38. Rf8 {[%clk 0:01:40.6]} 38...
a2 {[%clk 0:01:19.5]} 39. g7 {[%clk 0:01:37.8]} 39... a1=Q {[%clk 0:01:19.7]}
40. g8=Q+ {[%clk 0:01:37.5]} 40... Kd6 {[%clk 0:01:20]} 41. Rd8+ {[%clk
0:01:22.2]} 41... Kc7 {[%clk 0:01:20.1]} 42. Rc8+ {[%clk 0:01:21.4]} 42... Kb6
{[%clk 0:01:20.2]} 43. Qd8+ {[%clk 0:01:15.2]} 43... Kb5 {[%clk 0:01:11.1]} 44.
Qxd5+ {[%clk 0:01:14.1]} 44... Kb4 {[%clk 0:01:04.5]} 45. Qc5+ {[%clk
0:01:11.6]} 45... Ka4 {[%clk 0:01:04.6]} 46. Ra8# {[%clk 0:01:11.4]} 1-0

[Event "*** Titled Tuesday Blitz"]
[Site "Chess.com"]
[Date "2020.11.10"]
[Round "8"]
[White "Anna_ChessMate"]
[Black "Savva09022009"]
[Result "0-1"]
[WhiteElo "2600"]
[BlackElo "2437"]
[TimeControl "180+1"]
[EndTime "11:32:07 PST"]
[Termination "Savva09022009 won by resignation"]

1. d4 {[%clk 0:03:00.9]} 1... Nf6 {[%clk 0:02:58.5]} 2. c4 {[%clk 0:03:00.7]}
2... e6 {[%clk 0:02:57.4]} 3. Nf3 {[%clk 0:03:00.9]} 3... d5 {[%clk 0:02:56.2]}
4. Nc3 {[%clk 0:03:00.3]} 4... dxc4 {[%clk 0:02:55.6]} 5. e4 {[%clk 0:02:59.5]}
5... b5 {[%clk 0:02:55.5]} 6. e5 {[%clk 0:02:58.3]} 6... Nd5 {[%clk 0:02:53.2]}
7. Nxb5 {[%clk 0:02:58.3]} 7... Nb6 {[%clk 0:02:51.8]} 8. Bg5 {[%clk 0:02:53.6]}
8... Be7 {[%clk 0:02:49.4]} 9. Qd2 {[%clk 0:02:46.7]} 9... Nc6 {[%clk 0:02:44]}
10. Bxe7 {[%clk 0:02:38]} 10... Qxe7 {[%clk 0:02:44.8]} 11. Rc1 {[%clk
0:02:37.8]} 11... O-O {[%clk 0:02:41.2]} 12. Bxc4 {[%clk 0:02:31.8]} 12... Nxc4
{[%clk 0:02:35.3]} 13. Rxc4 {[%clk 0:02:31.3]} 13... Bb7 {[%clk 0:02:35.9]} 14.
O-O {[%clk 0:02:17.2]} 14... a6 {[%clk 0:02:14]} 15. Na3 {[%clk 0:02:16.9]}
15... Na7 {[%clk 0:02:06.7]} 16. Rfc1 {[%clk 0:02:14.5]} 16... Rac8 {[%clk
0:02:04.5]} 17. Qc3 {[%clk 0:02:06.5]} 17... h6 {[%clk 0:01:42.3]} 18. Rxc7
{[%clk 0:01:55.1]} 18... Rxc7 {[%clk 0:01:41.4]} 19. Qxc7 {[%clk 0:01:56]} 19...
Rc8 {[%clk 0:01:40.4]} 20. Qxc8+ {[%clk 0:01:44.7]} 20... Nxc8 {[%clk
0:01:39.3]} 21. h3 {[%clk 0:01:29.9]} 21... Nb6 {[%clk 0:01:37.2]} 22. Rc3
{[%clk 0:01:25.8]} 22... Nd5 {[%clk 0:01:35.2]} 23. Rb3 {[%clk 0:01:21.6]} 23...
Nf4 {[%clk 0:01:30.1]} 24. Nc4 {[%clk 0:01:20.5]} 24... Bxf3 {[%clk 0:01:24.8]}
25. Rxf3 {[%clk 0:01:19.4]} 25... Ne2+ {[%clk 0:01:21.9]} 26. Kh2 {[%clk
0:01:19.5]} 26... Nxd4 {[%clk 0:01:22.8]} 27. Rd3 {[%clk 0:01:16.9]} 27... Qc5
{[%clk 0:01:20.3]} 28. b3 {[%clk 0:01:16.5]} 28... Nc6 {[%clk 0:01:14.4]} 29. f4
{[%clk 0:01:14.9]} 29... Qf2 {[%clk 0:01:12.5]} 30. Rf3 {[%clk 0:01:11.7]} 30...
Qxa2 {[%clk 0:01:10.2]} 31. Rd3 {[%clk 0:01:07.6]} 31... Qc2 {[%clk 0:01:05.5]}
32. Rg3 {[%clk 0:01:04.4]} 32... Nd4 {[%clk 0:01:01.9]} 33. Nd6 {[%clk
0:00:58.7]} 33... Nf5 {[%clk 0:01:00.2]} 34. Nxf5 {[%clk 0:00:57.8]} 34... Qxf5
{[%clk 0:01:01.1]} 35. Re3 {[%clk 0:00:56.3]} 35... Qxf4+ {[%clk 0:00:59.5]} 0-1

[Event "*** Titled Tuesday Blitz"]
[Site "Chess.com"]
[Date "2020.11.10"]
[Round "8"]
[White "Chessdude1987"]
[Black "Sergey85Rodchenkov"]
[Result "0-1"]
[WhiteElo "2287"]
[BlackElo "2461"]
[TimeControl "180+1"]
[EndTime "11:32:08 PST"]
[Termination "Sergey85Rodchenkov won by resignation"]

1. e4 {[%clk 0:03:00.9]} 1... c5 {[%clk 0:02:59.4]} 2. b3 {[%clk 0:03:00.6]}
2... d5 {[%clk 0:02:58.5]} 3. exd5 {[%clk 0:03:00.1]} 3... Qxd5 {[%clk
0:02:58.7]} 4. Nc3 {[%clk 0:03:00.4]} 4... Qd8 {[%clk 0:02:57.8]} 5. Nf3 {[%clk
0:02:58.2]} 5... Nf6 {[%clk 0:02:56.9]} 6. Bc4 {[%clk 0:02:56.1]} 6... Nc6
{[%clk 0:02:56.2]} 7. O-O {[%clk 0:02:44.2]} 7... e6 {[%clk 0:02:52.8]} 8. Bb2
{[%clk 0:02:40.7]} 8... Be7 {[%clk 0:02:51.4]} 9. Qe2 {[%clk 0:02:39.2]} 9...
O-O {[%clk 0:02:50.4]} 10. Ne4 {[%clk 0:02:38.6]} 10... b6 {[%clk 0:02:37.3]}
11. Nfg5 {[%clk 0:02:15.3]} 11... Bb7 {[%clk 0:02:03.7]} 12. Bxe6 {[%clk
0:02:04.2]} 12... fxe6 {[%clk 0:01:43.9]} 13. Nxe6 {[%clk 0:02:03.9]} 13... Qd5
{[%clk 0:01:36.3]} 14. Nc3 {[%clk 0:01:42.1]} 14... Nd4 {[%clk 0:01:24.9]} 15.
Nxd5 {[%clk 0:01:40.8]} 15... Nxe2+ {[%clk 0:01:24.5]} 16. Kh1 {[%clk
0:01:40.9]} 16... Bxd5 {[%clk 0:01:24.5]} 17. Nxf8 {[%clk 0:01:41.1]} 17... Bxf8
{[%clk 0:01:21]} 18. f3 {[%clk 0:01:18.9]} 18... Nd4 {[%clk 0:01:14.7]} 19. c3
{[%clk 0:01:14.9]} 19... Nc6 {[%clk 0:01:12.1]} 20. Rae1 {[%clk 0:01:12.4]}
20... Rd8 {[%clk 0:01:10.6]} 21. Re3 {[%clk 0:01:11.8]} 21... Bf7 {[%clk
0:01:07.7]} 22. Re2 {[%clk 0:01:09.7]} 22... Nd5 {[%clk 0:01:04.5]} 23. g3
{[%clk 0:01:09.1]} 23... a5 {[%clk 0:00:46.1]} 24. Rfe1 {[%clk 0:01:08.6]} 24...
a4 {[%clk 0:00:41.2]} 25. bxa4 {[%clk 0:00:57.8]} 25... Ra8 {[%clk 0:00:40.2]}
26. c4 {[%clk 0:00:56.6]} 26... Ndb4 {[%clk 0:00:37.8]} 27. Re3 {[%clk 0:00:53]}
27... Nc2 {[%clk 0:00:36.2]} 0-1